[Event "Titled Tuesday Blitz August 22 Early 2023"]
[White "Javakhadze, Zurab"]
[Black "Llanos, Guillermo"]
[WhiteFideId "13603647"]
[BlackFideId "100358"]
[WhiteElo "2700"]
[BlackElo "2411"]
[Result "0-1"]
[Round "1"]
[TimeControl "180+1"]
[Date "2023.08.22"]
[WhiteClock "0:00:00"]
[BlackClock "0:00:21"]
[Board "104"]

1. Nf3 {[%clk 0:03:00]}  Nf6 {[%clk 0:02:59]} 2. c4 {[%clk 0:02:56]}  b6 {[%clk 0:02:59]} 3. g3 {[%clk 0:02:56]}  Bb7 {[%clk 0:02:58]} 4. Bg2 {[%clk 0:02:55]}  c5 {[%clk 0:02:58]} 5. O-O {[%clk 0:02:55]}  g6 {[%clk 0:02:58]} 6. Nc3 {[%clk 0:02:56]}  Bg7 {[%clk 0:02:58]} 7. e3 {[%clk 0:02:57]}  O-O {[%clk 0:02:53]} 8. d4 {[%clk 0:02:57]}  cxd4 {[%clk 0:02:51]} 9. exd4 {[%clk 0:02:58]}  d5 {[%clk 0:02:51]} 10. Ne5 {[%clk 0:02:58]}  e6 {[%clk 0:02:45]} 11. Bg5 {[%clk 0:02:56]}  h6 {[%clk 0:02:30]} 12. Bxf6 {[%clk 0:02:55]}  Bxf6 {[%clk 0:02:29]} 13. cxd5 {[%clk 0:02:54]}  exd5 {[%clk 0:02:26]} 14. Qb3 {[%clk 0:02:48]}  Nc6 {[%clk 0:02:15]} 15. Nxc6 {[%clk 0:02:21]}  Bxc6 {[%clk 0:02:14]} 16. Rfd1 {[%clk 0:02:19]}  Rc8 {[%clk 0:01:47]} 17. Bxd5 {[%clk 0:01:51]}  Bxd5 {[%clk 0:01:40]} 18. Nxd5 {[%clk 0:01:51]}  Bg7 {[%clk 0:01:40]} 19. Nf4 {[%clk 0:01:52]}  Qd6 {[%clk 0:01:28]} 20. Rd3 {[%clk 0:01:41]}  Kh7 {[%clk 0:01:26]} 21. Rad1 {[%clk 0:01:41]}  Rc7 {[%clk 0:01:20]} 22. h4 {[%clk 0:01:33]}  h5 {[%clk 0:01:19]} 23. Nh3 {[%clk 0:01:30]}  Bf6 {[%clk 0:01:18]} 24. Rf3 {[%clk 0:01:21]}  Kg7 {[%clk 0:01:15]} 25. Ng5 {[%clk 0:01:21]}  Bxg5 {[%clk 0:01:14]} 26. hxg5 {[%clk 0:01:22]}  Rd8 {[%clk 0:01:11]} 27. Rf6 {[%clk 0:01:05]}  Qd5 {[%clk 0:01:10]} 28. Qe3 {[%clk 0:01:05]}  Rdd7 {[%clk 0:01:08]} 29. Qd3 {[%clk 0:00:39]}  Qxa2 {[%clk 0:01:03]} 30. d5 {[%clk 0:00:37]}  Qxb2 {[%clk 0:01:00]} 31. d6 {[%clk 0:00:35]}  Rc5 {[%clk 0:00:53]} 32. Qe3 {[%clk 0:00:34]}  Qe5 {[%clk 0:00:48]} 33. Qd3 {[%clk 0:00:14]}  Qxg5 {[%clk 0:00:44]} 34. Rf4 {[%clk 0:00:14]}  Qd8 {[%clk 0:00:40]} 35. Qd4+ {[%clk 0:00:13]}  Kg8 {[%clk 0:00:40]} 36. Re4 {[%clk 0:00:09]}  Rc6 {[%clk 0:00:38]} 37. Qe3 {[%clk 0:00:10]}  Kh7 {[%clk 0:00:36]} 38. Re8 {[%clk 0:00:05]}  Qf6 {[%clk 0:00:35]} 39. Ra8 {[%clk 0:00:02]}  Rcxd6 {[%clk 0:00:35]} 40. Rxd6 {[%clk 0:00:03]}  Qxd6 {[%clk 0:00:35]} 41. Qe8 {[%clk 0:00:04]}  Qd1+ {[%clk 0:00:33]} 42. Kh2 {[%clk 0:00:04]}  Qd4 {[%clk 0:00:30]} 43. Qg8+ {[%clk 0:00:04]}  Kh6 {[%clk 0:00:30]} 44. Qf8+ {[%clk 0:00:04]}  Kg5 {[%clk 0:00:29]} 45. Kg2 {[%clk 0:00:02]}  Qd5+ {[%clk 0:00:28]} 46. Kh2 {[%clk 0:00:02]}  Qf5 {[%clk 0:00:27]} 47. Kg2 {[%clk 0:00:01]}  h4 {[%clk 0:00:25]} 48. Qb4 {[%clk 0:00:01]}  hxg3 {[%clk 0:00:23]} 49. fxg3 {[%clk 0:00:02]}  Qd5+ {[%clk 0:00:22]} 50. Kh3 {[%clk 0:00:02]}  Qe6+ {[%clk 0:00:21]} 51. Kg2 {[%clk 0:00:02]}  Qe2+ {[%clk 0:00:21]} 52. Kg1 {[%clk 0:00:00]}  Rd1+ {[%clk 0:00:21]} 0-1


[Site "https://www.chess.com"]

[Event "Titled Tuesday Blitz August 22 Early 2023"]
[White "Rom, Jasper"]
[Black "Kavutskiy, Konstantin"]
[WhiteFideId "2023733"]
[BlackFideId "2026384"]
[WhiteElo "2405"]
[BlackElo "2688"]
[Result "0-1"]
[Round "1"]
[TimeControl "180+1"]
[Date "2023.08.22"]
[WhiteClock "0:00:00"]
[BlackClock "0:00:17"]
[Board "109"]

1. e4 {[%clk 0:02:59]}  c5 {[%clk 0:02:54]} 2. Nc3 {[%clk 0:02:58]}  e6 {[%clk 0:02:52]} 3. f4 {[%clk 0:02:58]}  a6 {[%clk 0:02:50]} 4. g3 {[%clk 0:02:57]}  Nc6 {[%clk 0:02:47]} 5. Bg2 {[%clk 0:02:57]}  Nf6 {[%clk 0:02:44]} 6. Nh3 {[%clk 0:02:54]}  d5 {[%clk 0:02:42]} 7. d3 {[%clk 0:02:53]}  Be7 {[%clk 0:02:40]} 8. O-O {[%clk 0:02:52]}  O-O {[%clk 0:02:37]} 9. Nf2 {[%clk 0:02:52]}  b5 {[%clk 0:02:34]} 10. g4 {[%clk 0:02:51]}  b4 {[%clk 0:02:27]} 11. Ne2 {[%clk 0:02:51]}  dxe4 {[%clk 0:02:22]} 12. dxe4 {[%clk 0:02:50]}  Qxd1 {[%clk 0:02:21]} 13. Rxd1 {[%clk 0:02:51]}  e5 {[%clk 0:02:13]} 14. f5 {[%clk 0:02:37]}  h6 {[%clk 0:02:12]} 15. c3 {[%clk 0:02:31]}  a5 {[%clk 0:02:06]} 16. Be3 {[%clk 0:02:30]}  Ba6 {[%clk 0:02:04]} 17. Ng3 {[%clk 0:02:30]}  Rfd8 {[%clk 0:02:03]} 18. h3 {[%clk 0:02:24]}  Nh7 {[%clk 0:01:59]} 19. Bf3 {[%clk 0:02:16]}  a4 {[%clk 0:01:53]} 20. a3 {[%clk 0:02:12]}  bxc3 {[%clk 0:01:51]} 21. bxc3 {[%clk 0:02:11]}  Rab8 {[%clk 0:01:51]} 22. Rd5 {[%clk 0:02:08]}  Bc4 {[%clk 0:01:48]} 23. Rxd8+ {[%clk 0:02:02]}  Rxd8 {[%clk 0:01:49]} 24. Rb1 {[%clk 0:02:02]}  Bb3 {[%clk 0:01:47]} 25. Be2 {[%clk 0:01:58]}  c4 {[%clk 0:01:47]} 26. Kf1 {[%clk 0:01:52]}  Bxa3 {[%clk 0:01:47]} 27. Ra1 {[%clk 0:01:48]}  Be7 {[%clk 0:01:46]} 28. Bc1 {[%clk 0:01:46]}  Bg5 {[%clk 0:01:41]} 29. Ba3 {[%clk 0:01:42]}  Bh4 {[%clk 0:01:40]} 30. Ngh1 {[%clk 0:01:04]}  Ng5 {[%clk 0:01:33]} 31. Bc5 {[%clk 0:00:56]}  Rd2 {[%clk 0:01:31]} 32. Rc1 {[%clk 0:00:37]}  Bc2 {[%clk 0:01:18]} 33. Be3 {[%clk 0:00:32]}  Rxe2 {[%clk 0:01:04]} 34. Kxe2 {[%clk 0:00:31]}  Bxe4 {[%clk 0:01:04]} 35. Nxe4 {[%clk 0:00:17]}  Nxe4 {[%clk 0:01:05]} 36. Nf2 {[%clk 0:00:14]}  Nd6 {[%clk 0:00:43]} 37. Ra1 {[%clk 0:00:07]}  Nb5 {[%clk 0:00:43]} 38. Ne4 {[%clk 0:00:07]}  a3 {[%clk 0:00:43]} 39. Bc5 {[%clk 0:00:07]}  Be7 {[%clk 0:00:40]} 40. Bxe7 {[%clk 0:00:06]}  Nxe7 {[%clk 0:00:41]} 41. Kd2 {[%clk 0:00:05]}  Nd5 {[%clk 0:00:31]} 42. Nd6 {[%clk 0:00:03]}  Nxd6 {[%clk 0:00:31]} 43. Rxa3 {[%clk 0:00:02]}  Ne4+ {[%clk 0:00:31]} 44. Kc2 {[%clk 0:00:01]}  Nexc3 {[%clk 0:00:29]} 45. Rxc3 {[%clk 0:00:01]}  Nxc3 {[%clk 0:00:30]} 46. Kxc3 {[%clk 0:00:02]}  f6 {[%clk 0:00:28]} 47. Kxc4 {[%clk 0:00:03]}  Kf7 {[%clk 0:00:29]} 48. Kd5 {[%clk 0:00:04]}  Ke7 {[%clk 0:00:30]} 49. Kc5 {[%clk 0:00:01]}  Kd7 {[%clk 0:00:30]} 50. Kd5 {[%clk 0:00:01]}  Kd8 {[%clk 0:00:27]} 51. h4 {[%clk 0:00:01]}  Kd7 {[%clk 0:00:24]} 52. g5 {[%clk 0:00:02]}  hxg5 {[%clk 0:00:23]} 53. hxg5 {[%clk 0:00:02]}  Ke7 {[%clk 0:00:20]} 54. g6 {[%clk 0:00:02]}  Kd7 {[%clk 0:00:20]} 55. Kc5 {[%clk 0:00:03]}  e4 {[%clk 0:00:14]} 56. Kd4 {[%clk 0:00:02]}  Kd6 {[%clk 0:00:13]} 57. Kxe4 {[%clk 0:00:03]}  Kc5 {[%clk 0:00:14]} 58. Kd3 {[%clk 0:00:03]}  Kd5 {[%clk 0:00:14]} 59. Ke3 {[%clk 0:00:02]}  Ke5 {[%clk 0:00:15]} 60. Kf3 {[%clk 0:00:02]}  Kxf5 {[%clk 0:00:16]} 61. Kg3 {[%clk 0:00:02]}  Kxg6 {[%clk 0:00:16]} 62. Kg4 {[%clk 0:00:00]}  Kf7 {[%clk 0:00:17]} 0-1


[Site "https://www.chess.com"]

[Event "Titled Tuesday Blitz August 22 Early 2023"]
[White "Skliarov, Viktor"]
[Black "sebastianmarinp"]
[WhiteFideId "14106736"]
[WhiteElo "2687"]
[BlackElo "2405"]
[Result "1-0"]
[Round "1"]
[TimeControl "180+1"]
[Date "2023.08.22"]
[WhiteClock "0:00:11"]
[BlackClock "0:00:00"]
[Board "110"]

1. e4 {[%clk 0:02:57]}  e6 {[%clk 0:02:59]} 2. d4 {[%clk 0:02:58]}  d5 {[%clk 0:02:59]} 3. e5 {[%clk 0:02:58]}  c5 {[%clk 0:02:58]} 4. c3 {[%clk 0:02:59]}  Qb6 {[%clk 0:02:59]} 5. Nf3 {[%clk 0:03:00]}  Nc6 {[%clk 0:02:58]} 6. a3 {[%clk 0:03:00]}  Nh6 {[%clk 0:02:56]} 7. b4 {[%clk 0:03:00]}  cxd4 {[%clk 0:02:54]} 8. Bxh6 {[%clk 0:03:00]}  gxh6 {[%clk 0:02:53]} 9. cxd4 {[%clk 0:03:01]}  Bd7 {[%clk 0:02:47]} 10. Ra2 {[%clk 0:02:53]}  Ne7 {[%clk 0:02:39]} 11. Bd3 {[%clk 0:02:41]}  a5 {[%clk 0:02:27]} 12. b5 {[%clk 0:02:37]}  a4 {[%clk 0:02:23]} 13. O-O {[%clk 0:02:33]}  Ng6 {[%clk 0:02:15]} 14. Nc3 {[%clk 0:02:26]}  Qa5 {[%clk 0:02:08]} 15. Ne2 {[%clk 0:02:10]}  Bxb5 {[%clk 0:02:01]} 16. Rb2 {[%clk 0:02:01]}  Bc6 {[%clk 0:01:55]} 17. Qa1 {[%clk 0:01:43]}  Be7 {[%clk 0:01:51]} 18. Rfb1 {[%clk 0:01:43]}  O-O {[%clk 0:01:48]} 19. Bb5 {[%clk 0:01:39]}  Rfc8 {[%clk 0:01:32]} 20. Qa2 {[%clk 0:01:39]}  Bf8 {[%clk 0:01:06]} 21. g3 {[%clk 0:01:36]}  Ne7 {[%clk 0:01:00]} 22. Kg2 {[%clk 0:01:36]}  Nf5 {[%clk 0:00:56]} 23. h4 {[%clk 0:01:21]}  Qd8 {[%clk 0:00:52]} 24. Bxc6 {[%clk 0:01:14]}  bxc6 {[%clk 0:00:53]} 25. Rb7 {[%clk 0:01:14]}  c5 {[%clk 0:00:45]} 26. dxc5 {[%clk 0:01:13]}  Rxc5 {[%clk 0:00:45]} 27. Qd2 {[%clk 0:01:11]}  Rac8 {[%clk 0:00:42]} 28. Ned4 {[%clk 0:01:07]}  Nxd4 {[%clk 0:00:37]} 29. Nxd4 {[%clk 0:01:08]}  Rc4 {[%clk 0:00:28]} 30. Qf4 {[%clk 0:01:04]}  R8c7 {[%clk 0:00:23]} 31. Rb8 {[%clk 0:00:58]}  Rc8 {[%clk 0:00:22]} 32. R1b7 {[%clk 0:00:58]}  Qe8 {[%clk 0:00:14]} 33. Rxc8 {[%clk 0:00:44]}  Rxc8 {[%clk 0:00:14]} 34. Nb5 {[%clk 0:00:43]}  Rb8 {[%clk 0:00:14]} 35. Rxb8 {[%clk 0:00:39]}  Qxb8 {[%clk 0:00:15]} 36. Nd6 {[%clk 0:00:39]}  Bxd6 {[%clk 0:00:14]} 37. exd6 {[%clk 0:00:39]}  Qd8 {[%clk 0:00:14]} 38. Qe5 {[%clk 0:00:32]}  Qd7 {[%clk 0:00:13]} 39. h5 {[%clk 0:00:30]}  f6 {[%clk 0:00:12]} 40. Qxf6 {[%clk 0:00:22]}  Qxd6 {[%clk 0:00:12]} 41. Qd4 {[%clk 0:00:22]}  e5 {[%clk 0:00:11]} 42. Qg4+ {[%clk 0:00:20]}  Kf7 {[%clk 0:00:11]} 43. Qf5+ {[%clk 0:00:20]}  Kg8 {[%clk 0:00:09]} 44. Qc8+ {[%clk 0:00:20]}  Kg7 {[%clk 0:00:07]} 45. Qg4+ {[%clk 0:00:19]}  Kf8 {[%clk 0:00:07]} 46. Qf5+ {[%clk 0:00:19]}  Ke7 {[%clk 0:00:07]} 47. Qxh7+ {[%clk 0:00:19]}  Kd8 {[%clk 0:00:07]} 48. Qc2 {[%clk 0:00:12]}  d4 {[%clk 0:00:04]} 49. Qxa4 {[%clk 0:00:12]}  d3 {[%clk 0:00:00]} 50. Kf1 {[%clk 0:00:11]} 1-0


[Site "https://www.chess.com"]

[Event "Titled Tuesday Blitz August 22 Early 2023"]
[White "Romero Ruscalleda, Josep"]
[Black "Egor_Koshulyan"]
[WhiteFideId "2231859"]
[WhiteElo "2403"]
[BlackElo "2682"]
[Result "1-0"]
[Round "1"]
[TimeControl "180+1"]
[Date "2023.08.22"]
[WhiteClock "0:01:23"]
[BlackClock "0:00:45"]
[Board "115"]

1. e4 {[%clk 0:03:00]}  c5 {[%clk 0:03:00]} 2. c3 {[%clk 0:03:00]}  Nf6 {[%clk 0:02:58]} 3. e5 {[%clk 0:02:59]}  Nd5 {[%clk 0:02:58]} 4. Nf3 {[%clk 0:02:59]}  Nc6 {[%clk 0:02:58]} 5. Bc4 {[%clk 0:02:59]}  e6 {[%clk 0:02:58]} 6. O-O {[%clk 0:02:57]}  d6 {[%clk 0:02:57]} 7. d4 {[%clk 0:02:55]}  cxd4 {[%clk 0:02:56]} 8. cxd4 {[%clk 0:02:54]}  Be7 {[%clk 0:02:55]} 9. Nc3 {[%clk 0:02:52]}  Nxc3 {[%clk 0:02:39]} 10. bxc3 {[%clk 0:02:52]}  dxe5 {[%clk 0:02:26]} 11. dxe5 {[%clk 0:02:52]}  Qa5 {[%clk 0:02:26]} 12. Qe2 {[%clk 0:02:46]}  O-O {[%clk 0:02:20]} 13. Bd2 {[%clk 0:02:44]}  Bd7 {[%clk 0:02:09]} 14. Rfd1 {[%clk 0:02:42]}  Rfd8 {[%clk 0:02:09]} 15. Qe4 {[%clk 0:02:40]}  Qa4 {[%clk 0:01:51]} 16. Bg5 {[%clk 0:02:23]}  b5 {[%clk 0:01:04]} 17. Bxe7 {[%clk 0:02:16]}  Nxe7 {[%clk 0:00:48]} 18. Rxd7 {[%clk 0:02:14]}  bxc4 {[%clk 0:00:47]} 19. Rxe7 {[%clk 0:02:07]}  Rd1+ {[%clk 0:00:47]} 20. Rxd1 {[%clk 0:02:07]}  Qxd1+ {[%clk 0:00:48]} 21. Qe1 {[%clk 0:02:06]}  Qd3 {[%clk 0:00:48]} 22. h4 {[%clk 0:02:00]}  Rb8 {[%clk 0:00:49]} 23. Kh2 {[%clk 0:01:58]}  h6 {[%clk 0:00:49]} 24. Qe3 {[%clk 0:01:47]}  Qf1 {[%clk 0:00:49]} 25. Qxa7 {[%clk 0:01:42]}  Rb1 {[%clk 0:00:50]} 26. Rxf7 {[%clk 0:01:38]}  Qd3 {[%clk 0:00:45]} 27. Rxg7+ {[%clk 0:01:34]}  Kh8 {[%clk 0:00:46]} 28. Rg3 {[%clk 0:01:23]}  Qe3 {[%clk 0:00:45]} 1-0


[Site "https://www.chess.com"]

[Event "Titled Tuesday Blitz August 22 Early 2023"]
[White "Dwilewicz, Katarzyna"]
[Black "Jakubowski, Krzysztof"]
[WhiteFideId "1148486"]
[BlackFideId "1112848"]
[WhiteElo "2401"]
[BlackElo "2678"]
[Result "1-0"]
[Round "1"]
[TimeControl "180+1"]
[Date "2023.08.22"]
[WhiteClock "0:00:06"]
[BlackClock "0:01:00"]
[Board "117"]

1. e4 {[%clk 0:03:00]}  c5 {[%clk 0:02:47]} 2. Nf3 {[%clk 0:03:01]}  e6 {[%clk 0:02:46]} 3. g3 {[%clk 0:03:01]}  Nc6 {[%clk 0:02:45]} 4. Bg2 {[%clk 0:03:01]}  Nf6 {[%clk 0:02:44]} 5. Nc3 {[%clk 0:03:00]}  Qc7 {[%clk 0:02:34]} 6. O-O {[%clk 0:02:59]}  a6 {[%clk 0:02:33]} 7. d4 {[%clk 0:02:57]}  cxd4 {[%clk 0:02:33]} 8. Nxd4 {[%clk 0:02:57]}  Be7 {[%clk 0:02:33]} 9. Re1 {[%clk 0:02:47]}  d6 {[%clk 0:02:32]} 10. Nxc6 {[%clk 0:02:45]}  bxc6 {[%clk 0:02:32]} 11. e5 {[%clk 0:02:46]}  dxe5 {[%clk 0:02:32]} 12. Rxe5 {[%clk 0:02:45]}  O-O {[%clk 0:02:32]} 13. Bf4 {[%clk 0:02:43]}  Bd6 {[%clk 0:02:31]} 14. Rxe6 {[%clk 0:02:10]}  Bxf4 {[%clk 0:02:29]} 15. Rxc6 {[%clk 0:02:09]}  Qa7 {[%clk 0:02:29]} 16. Rxf6 {[%clk 0:01:53]}  gxf6 {[%clk 0:02:25]} 17. Bxa8 {[%clk 0:01:50]}  Qxa8 {[%clk 0:02:20]} 18. gxf4 {[%clk 0:01:51]}  Kh8 {[%clk 0:02:20]} 19. Ne2 {[%clk 0:01:30]}  Bg4 {[%clk 0:02:11]} 20. Qd4 {[%clk 0:01:24]}  Rg8 {[%clk 0:01:58]} 21. Ng3 {[%clk 0:01:09]}  Rg6 {[%clk 0:01:48]} 22. Re1 {[%clk 0:01:04]}  h5 {[%clk 0:01:40]} 23. h4 {[%clk 0:00:55]}  Kg7 {[%clk 0:01:29]} 24. Kh2 {[%clk 0:00:51]}  Qf3 {[%clk 0:01:24]} 25. Qe3 {[%clk 0:00:47]}  Qc6 {[%clk 0:01:24]} 26. c3 {[%clk 0:00:44]}  Bc8 {[%clk 0:01:20]} 27. Nxh5+ {[%clk 0:00:30]}  Kh7 {[%clk 0:01:20]} 28. Ng3 {[%clk 0:00:31]}  Bb7 {[%clk 0:01:20]} 29. Rg1 {[%clk 0:00:20]}  Rg4 {[%clk 0:01:15]} 30. Qe4+ {[%clk 0:00:11]}  Qxe4 {[%clk 0:01:11]} 31. Nxe4 {[%clk 0:00:12]}  Rxg1 {[%clk 0:01:08]} 32. Nxf6+ {[%clk 0:00:12]}  Kg6 {[%clk 0:01:08]} 33. Kxg1 {[%clk 0:00:10]}  Kxf6 {[%clk 0:01:09]} 34. Kh2 {[%clk 0:00:07]}  Bf3 {[%clk 0:01:07]} 35. Kg3 {[%clk 0:00:07]}  Bd1 {[%clk 0:01:07]} 36. f3 {[%clk 0:00:04]}  Kg6 {[%clk 0:01:05]} 37. b3 {[%clk 0:00:04]}  f5 {[%clk 0:01:01]} 38. Kf2 {[%clk 0:00:05]}  Bc2 {[%clk 0:00:59]} 39. Ke3 {[%clk 0:00:04]}  Bb1 {[%clk 0:00:59]} 40. a3 {[%clk 0:00:05]}  Ba2 {[%clk 0:00:59]} 41. b4 {[%clk 0:00:05]}  Bf7 {[%clk 0:00:58]} 42. Kd4 {[%clk 0:00:05]}  Kf6 {[%clk 0:00:59]} 43. c4 {[%clk 0:00:05]}  Ke6 {[%clk 0:00:59]} 44. a4 {[%clk 0:00:06]}  Be8 {[%clk 0:00:59]} 45. b5 {[%clk 0:00:06]}  a5 {[%clk 0:00:59]} 46. c5 {[%clk 0:00:06]}  Bh5 {[%clk 0:00:55]} 47. b6 {[%clk 0:00:03]}  Kd7 {[%clk 0:00:55]} 48. Ke5 {[%clk 0:00:02]}  Bxf3 {[%clk 0:00:55]} 49. Kxf5 {[%clk 0:00:03]}  Bd1 {[%clk 0:00:55]} 50. Ke5 {[%clk 0:00:03]}  Bxa4 {[%clk 0:00:56]} 51. h5 {[%clk 0:00:04]}  Kc6 {[%clk 0:00:54]} 52. h6 {[%clk 0:00:03]}  Bc2 {[%clk 0:00:54]} 53. f5 {[%clk 0:00:04]}  a4 {[%clk 0:00:55]} 54. h7 {[%clk 0:00:04]}  a3 {[%clk 0:00:55]} 55. h8=Q {[%clk 0:00:05]}  a2 {[%clk 0:00:56]} 56. Qa8+ {[%clk 0:00:05]}  Kb5 {[%clk 0:00:56]} 57. Qxa2 {[%clk 0:00:06]}  Kb4 {[%clk 0:00:56]} 58. Qxc2 {[%clk 0:00:05]}  Ka3 {[%clk 0:00:57]} 59. Qc3+ {[%clk 0:00:04]}  Ka4 {[%clk 0:00:57]} 60. Qa1+ {[%clk 0:00:05]}  Kb5 {[%clk 0:00:58]} 61. b7 {[%clk 0:00:05]}  Kc4 {[%clk 0:00:58]} 62. b8=Q {[%clk 0:00:05]}  Kd3 {[%clk 0:00:59]} 63. Qb3+ {[%clk 0:00:05]}  Ke2 {[%clk 0:01:00]} 64. Qaa2+ {[%clk 0:00:05]}  Ke1 {[%clk 0:01:00]} 65. Qbb1# {[%clk 0:00:06]} 1-0


[Site "https://www.chess.com"]

[Event "Titled Tuesday Blitz August 22 Early 2023"]
[White "FuenfgegenWilly"]
[Black "Gubajdullin, Alexei"]
[BlackFideId "4141202"]
[WhiteElo "2400"]
[BlackElo "2674"]
[Result "0-1"]
[Round "1"]
[TimeControl "180+1"]
[Date "2023.08.22"]
[WhiteClock "0:00:54"]
[BlackClock "0:01:48"]
[Board "119"]

1. e4 {[%clk 0:03:00]}  g6 {[%clk 0:02:58]} 2. Nc3 {[%clk 0:03:00]}  d6 {[%clk 0:02:58]} 3. f4 {[%clk 0:03:01]}  Bg7 {[%clk 0:02:57]} 4. Nf3 {[%clk 0:03:01]}  c5 {[%clk 0:02:57]} 5. Bb5+ {[%clk 0:03:02]}  Bd7 {[%clk 0:02:56]} 6. Bxd7+ {[%clk 0:03:01]}  Qxd7 {[%clk 0:02:56]} 7. O-O {[%clk 0:03:01]}  Nc6 {[%clk 0:02:56]} 8. d3 {[%clk 0:03:01]}  Nf6 {[%clk 0:02:54]} 9. Qe1 {[%clk 0:03:00]}  O-O {[%clk 0:02:53]} 10. Qh4 {[%clk 0:03:00]}  Nd4 {[%clk 0:02:52]} 11. Nxd4 {[%clk 0:02:55]}  cxd4 {[%clk 0:02:52]} 12. Ne2 {[%clk 0:02:56]}  Rac8 {[%clk 0:02:41]} 13. c3 {[%clk 0:02:48]}  dxc3 {[%clk 0:02:38]} 14. bxc3 {[%clk 0:02:49]}  b5 {[%clk 0:02:33]} 15. f5 {[%clk 0:02:45]}  b4 {[%clk 0:02:32]} 16. Bd2 {[%clk 0:02:35]}  bxc3 {[%clk 0:02:26]} 17. Bxc3 {[%clk 0:02:29]}  Qb5 {[%clk 0:02:26]} 18. Rf3 {[%clk 0:02:18]}  Rxc3 {[%clk 0:02:20]} 19. Nxc3 {[%clk 0:02:07]}  Qc5+ {[%clk 0:02:20]} 20. Kh1 {[%clk 0:02:02]}  Qxc3 {[%clk 0:02:20]} 21. Raf1 {[%clk 0:02:03]}  Rb8 {[%clk 0:02:13]} 22. h3 {[%clk 0:02:01]}  Rb2 {[%clk 0:02:12]} 23. fxg6 {[%clk 0:01:49]}  hxg6 {[%clk 0:02:11]} 24. a4 {[%clk 0:01:44]}  Qc2 {[%clk 0:02:10]} 25. R1f2 {[%clk 0:01:39]}  Rb1+ {[%clk 0:02:08]} 26. Kh2 {[%clk 0:01:39]}  Qxa4 {[%clk 0:02:03]} 27. Qg5 {[%clk 0:01:30]}  Qa1 {[%clk 0:02:01]} 28. e5 {[%clk 0:01:06]}  Nh5 {[%clk 0:01:50]} 29. Rxf7 {[%clk 0:00:54]}  Rh1# {[%clk 0:01:48]} 0-1


[Site "https://www.chess.com"]

[Event "Titled Tuesday Blitz August 22 Early 2023"]
[White "Biregina"]
[Black "Djordjevic, Vuk"]
[BlackFideId "902098"]
[WhiteElo "2395"]
[BlackElo "2667"]
[Result "0-1"]
[Round "1"]
[TimeControl "180+1"]
[Date "2023.08.22"]
[WhiteClock "0:00:00"]
[BlackClock "0:00:28"]
[Board "123"]

1. d4 {[%clk 0:02:58]}  e6 {[%clk 0:03:00]} 2. Nf3 {[%clk 0:02:58]}  Nf6 {[%clk 0:03:00]} 3. e3 {[%clk 0:02:59]}  b6 {[%clk 0:03:00]} 4. b3 {[%clk 0:02:58]}  Bb7 {[%clk 0:03:01]} 5. Bb2 {[%clk 0:02:59]}  c5 {[%clk 0:03:02]} 6. Nbd2 {[%clk 0:02:59]}  Be7 {[%clk 0:03:01]} 7. Bd3 {[%clk 0:02:57]}  O-O {[%clk 0:03:02]} 8. O-O {[%clk 0:02:57]}  Nc6 {[%clk 0:03:02]} 9. a3 {[%clk 0:02:56]}  d5 {[%clk 0:03:00]} 10. Ne5 {[%clk 0:02:50]}  Qc7 {[%clk 0:02:52]} 11. Ndf3 {[%clk 0:02:47]}  Ne4 {[%clk 0:02:49]} 12. Nxc6 {[%clk 0:02:42]}  Bxc6 {[%clk 0:02:47]} 13. Ne5 {[%clk 0:02:42]}  Bb7 {[%clk 0:02:43]} 14. Bxe4 {[%clk 0:02:35]}  dxe4 {[%clk 0:02:43]} 15. Qg4 {[%clk 0:02:24]}  f5 {[%clk 0:02:32]} 16. Qe2 {[%clk 0:02:16]}  cxd4 {[%clk 0:02:23]} 17. Bxd4 {[%clk 0:02:14]}  Bf6 {[%clk 0:02:21]} 18. Qc4 {[%clk 0:01:41]}  Qxc4 {[%clk 0:02:13]} 19. bxc4 {[%clk 0:01:16]}  Rac8 {[%clk 0:02:00]} 20. Rab1 {[%clk 0:01:05]}  Rfd8 {[%clk 0:01:09]} 21. Rfd1 {[%clk 0:00:28]}  Ba6 {[%clk 0:01:09]} 22. c5 {[%clk 0:00:11]}  bxc5 {[%clk 0:01:06]} 23. Bc3 {[%clk 0:00:09]}  Rd5 {[%clk 0:01:06]} 24. f4 {[%clk 0:00:06]}  Rcd8 {[%clk 0:00:51]} 25. Rxd5 {[%clk 0:00:05]}  exd5 {[%clk 0:00:51]} 26. Rd1 {[%clk 0:00:04]}  Bb5 {[%clk 0:00:44]} 27. Rb1 {[%clk 0:00:04]}  Ba4 {[%clk 0:00:44]} 28. Rb7 {[%clk 0:00:03]}  d4 {[%clk 0:00:42]} 29. exd4 {[%clk 0:00:04]}  cxd4 {[%clk 0:00:43]} 30. Bd2 {[%clk 0:00:04]}  Bxc2 {[%clk 0:00:38]} 31. Rxa7 {[%clk 0:00:04]}  e3 {[%clk 0:00:33]} 32. Bb4 {[%clk 0:00:03]}  d3 {[%clk 0:00:31]} 33. Rd7 {[%clk 0:00:03]}  Rxd7 {[%clk 0:00:27]} 34. Nxd7 {[%clk 0:00:04]}  d2 {[%clk 0:00:27]} 35. Nxf6+ {[%clk 0:00:00]}  gxf6 {[%clk 0:00:28]} 0-1


[Site "https://www.chess.com"]

[Event "Titled Tuesday Blitz August 22 Early 2023"]
[White "Nosacheva, Mariya"]
[Black "Skvortsov, Andrei"]
[WhiteFideId "34111422"]
[BlackFideId "24108600"]
[WhiteElo "2394"]
[BlackElo "2659"]
[Result "1-0"]
[Round "1"]
[TimeControl "180+1"]
[Date "2023.08.22"]
[WhiteClock "0:01:03"]
[BlackClock "0:01:10"]
[Board "125"]

1. e4 {[%clk 0:02:59]}  d5 {[%clk 0:03:00]} 2. exd5 {[%clk 0:02:56]}  Qxd5 {[%clk 0:03:01]} 3. d4 {[%clk 0:02:56]}  e5 {[%clk 0:02:59]} 4. Nf3 {[%clk 0:02:51]}  exd4 {[%clk 0:02:54]} 5. Qxd4 {[%clk 0:02:49]}  Nf6 {[%clk 0:02:54]} 6. Bc4 {[%clk 0:02:46]}  Qxd4 {[%clk 0:02:54]} 7. Nxd4 {[%clk 0:02:46]}  Bc5 {[%clk 0:02:53]} 8. Nb5 {[%clk 0:02:43]}  Na6 {[%clk 0:02:51]} 9. Bf4 {[%clk 0:02:37]}  Bb4+ {[%clk 0:02:46]} 10. Nd2 {[%clk 0:02:25]}  O-O {[%clk 0:02:43]} 11. c3 {[%clk 0:02:17]}  Ba5 {[%clk 0:02:42]} 12. O-O {[%clk 0:02:15]}  Rd8 {[%clk 0:02:28]} 13. Rfe1 {[%clk 0:02:12]}  c6 {[%clk 0:02:12]} 14. Nd6 {[%clk 0:02:04]}  b5 {[%clk 0:02:12]} 15. Bxf7+ {[%clk 0:02:01]}  Kf8 {[%clk 0:02:11]} 16. Nxc8 {[%clk 0:01:52]}  Kxf7 {[%clk 0:01:55]} 17. Nd6+ {[%clk 0:01:52]}  Kf8 {[%clk 0:01:51]} 18. Nb7 {[%clk 0:01:52]}  Rxd2 {[%clk 0:01:41]} 19. Bxd2 {[%clk 0:01:53]}  Bc7 {[%clk 0:01:40]} 20. Be3 {[%clk 0:01:38]}  Ng4 {[%clk 0:01:41]} 21. Nc5 {[%clk 0:01:39]}  Bxh2+ {[%clk 0:01:39]} 22. Kh1 {[%clk 0:01:35]}  Nc7 {[%clk 0:01:39]} 23. g3 {[%clk 0:01:23]}  Nd5 {[%clk 0:01:39]} 24. Kg2 {[%clk 0:01:15]}  h5 {[%clk 0:01:30]} 25. Bg5 {[%clk 0:01:12]}  Kf7 {[%clk 0:01:15]} 26. f3 {[%clk 0:01:11]}  Kg6 {[%clk 0:01:15]} 27. fxg4 {[%clk 0:01:11]}  Kxg5 {[%clk 0:01:12]} 28. Ne6+ {[%clk 0:01:05]}  Kf6 {[%clk 0:01:12]} 29. g5+ {[%clk 0:01:03]}  Kg6 {[%clk 0:01:12]} 30. Kxh2 {[%clk 0:01:03]}  a5 {[%clk 0:01:10]} 31. Nf4+ {[%clk 0:01:03]} 1-0


[Site "https://www.chess.com"]